fUST/lending_fUST_20250425
["ID","MTS","AMOUNT","RATE_DAILY","PERIOD"]
[358931464,1745554233899,-506.31710652,0.00016438,2]
[358931465,1745554233908,-500.0,0.00016438,2]
[358931466,1745554233918,-507.3187408,0.00016438,2]
[358931467,1745554233928,-504.94646236,0.00016438,2]
[358931468,1745554233938,-507.5902772,0.00016438,2]
[358931469,1745554233948,-505.29697718,0.00016438,2]
[358931470,1745554233958,-500.0,0.00016438,2]
[358931471,1745554233967,-509.49168143,0.00016438,2]
[358931472,1745554233977,-500.0,0.00016438,2]
[358931473,1745554233987,-508.65643041,0.00016438,2]
[358931474,1745554233997,-504.56543627,0.00016438,2]
[358931475,1745554234006,-500.0,0.00016438,2]
[358931476,1745554234016,-500.0,0.00016438,2]
[358931477,1745554234026,-502.30825677,0.00016438,2]
[358931478,1745554234035,-569.15430033,0.00016438,2]
[358931479,1745554234044,-507.33040296,0.00016438,2]
[358931480,1745554234055,-502.34352614,0.00016438,2]
[358931481,1745554234064,-500.0,0.00016438,2]
[358931482,1745554234074,-509.51412641,0.00016438,2]
[358931483,1745554234084,-512.56575352,0.00016438,2]
[358931484,1745554234094,-506.05544452,0.00016438,2]
[358931485,1745554234103,-511.25049174,0.00016438,2]
[358931486,1745554234113,-509.09081563,0.00016438,2]
[358931487,1745554234123,-159.50449741,0.00016438,2]
[358931488,1745554234132,-503.55979987,0.00016438,2]
[358931489,1745554234142,-505.32673527,0.00016438,2]
[358931490,1745554234152,-1297.33,0.00016438,2]
[358931491,1745554234162,-507.20394786,0.00016438,2]
[358931492,1745554234172,-506.08834945,0.00016438,2]
[358931493,1745554234181,-500.0,0.00016438,2]
[358931494,1745554234191,-508.69421443,0.00016438,2]
[358931495,1745554234201,-503.10320647,0.00016438,2]
[358931496,1745554234211,-509.9512775,0.00016438,2]
[358931497,1745554234221,-506.16734336,0.00016438,2]
[358931498,1745554234230,-509.01677767,0.00016438,2]
[358931499,1745554234240,-513.21205969,0.00016438,2]
[358931500,1745554234249,-500.0,0.00016438,2]
[358931501,1745554234260,-500.0,0.00016438,2]
[358931502,1745554234269,-510.0415643,0.00016438,2]
[358931503,1745554234279,-507.31359825,0.00016438,2]
[358931504,1745554234288,-508.46316724,0.00016438,2]
[358931505,1745554234298,-511.42080855,0.00016438,2]
[358931506,1745554234307,-505.78717537,0.00016438,2]
[358931507,1745554234318,-506.13484762,0.00016438,2]
[358931508,1745554234327,-500.0,0.00016438,2]
[358931509,1745554234336,-511.24758417,0.00016438,2]
[358931510,1745554234346,-505.94490265,0.00016438,2]
[358931511,1745554234355,-500.0,0.00016438,2]
[358931512,1745554234364,-500.0,0.00016438,2]
[358931513,1745554234374,-500.0,0.00016438,2]
[358931514,1745554234383,-506.33165335,0.00016438,2]
[358931515,1745554234393,-511.70959443,0.00016438,2]
[358931516,1745554234402,-505.46,0.00016438,2]
[358931517,1745554234411,-508.7153621,0.00016438,2]
[358931518,1745554234421,-507.22847826,0.00016438,2]
[358931519,1745554234431,-511.26674275,0.00016438,2]
[358931520,1745554234441,-1302.57,0.00016438,2]
[358931521,1745554234450,-500.0,0.00016438,2]
[358931522,1745554234460,-525.98456536,0.00016438,2]
[358931523,1745554234470,-508.94087594,0.00016438,2]
[358931524,1745554234479,-501.02292389,0.00016438,2]
[358931525,1745554234488,-502.83636768,0.00016438,2]
[358931526,1745554234497,-510.93830196,0.00016438,2]
[358931527,1745554234508,-514.07,0.00016438,2]
[358931528,1745554234517,-522.78842006,0.00016438,2]
[358931529,1745554234526,-503.69122455,0.00016438,2]
[358931530,1745554234536,-503.00322311,0.00016438,2]
[358931531,1745554234545,-500.76094803,0.00016438,2]
[358931532,1745554234554,-500.0,0.00016438,2]
[358931533,1745554234563,-512.43,0.00016438,2]
[358931534,1745554234573,-587.26116451,0.00016438,2]
[358931535,1745554234582,-501.163455,0.00016438,2]
[358931536,1745554234592,-510.35062208,0.00016438,2]
[358931537,1745554234601,-187.35998092,0.00016438,2]
[358931538,1745554234610,-505.98837148,0.00016438,2]
[358931539,1745554234624,-594.6429155,0.00016438,2]
[358931540,1745554234633,-172.0,0.00016438,2]
[358931541,1745554234642,-509.99643377,0.00016438,2]
[358931542,1745554234651,-712.78,0.00016438,2]
[358931543,1745554234661,-236.367753,0.00016438,2]
[358931544,1745554234671,-500.0,0.00016438,2]
[358931545,1745554234680,-500.0,0.00016438,2]
[358931546,1745554234690,-151.0,0.00016438,2]
[358931547,1745554234700,-507.18192191,0.00016438,2]
[358931548,1745554234711,-503.33644882,0.00016438,2]
[358931549,1745554234720,-370.60568461,0.00016438,2]
[358931550,1745554234731,-151.0,0.00016438,2]
[358931551,1745554234740,-513.16030902,0.00016438,2]
[358931552,1745554234750,-507.67137692,0.00016438,2]
[358931553,1745554234760,-151.0,0.00016438,2]
[358931554,1745554234769,-151.0,0.00016438,2]
[358931555,1745554234779,-509.17081586,0.00016438,2]
[358931556,1745554234790,-513.17718977,0.00016438,2]
[358931557,1745554234800,-513.51437143,0.00016438,2]
[358931558,1745554234809,-540.62989002,0.00016438,2]
[358931559,1745554234819,-508.54357215,0.00016438,2]
[358931560,1745554234829,-508.69909673,0.00016438,2]
[358931561,1745554234839,-151.0,0.00016438,2]
[358931562,1745554234849,-500.0,0.00016438,2]
[358931563,1745554234859,-500.0,0.00016438,2]
[358931564,1745554234868,-500.0,0.00016438,2]
[358931565,1745554234878,-503.06764905,0.00016438,2]
[358931566,1745554234887,-1294.08,0.00016438,2]
[358931567,1745554234897,-500.0,0.00016438,2]
[358931568,1745554234906,-506.23015723,0.00016438,2]
[358931569,1745554234916,-506.96534098,0.00016438,2]
[358931570,1745554234927,-513.60056442,0.00016438,2]
[358931571,1745554234936,-218.38918327,0.00016438,2]
[358931572,1745554234946,-473.24602199,0.00016438,2]
[358931573,1745554234955,-507.36372666,0.00016438,2]
[358931574,1745554234965,-510.93748974,0.00016438,2]
[358931575,1745554234974,-507.85738859,0.00016438,2]
[358931576,1745554234984,-507.44696819,0.00016438,2]
[358931577,1745554234993,-503.69168657,0.00016438,2]
[358931578,1745554235003,-1157.13,0.00016438,2]
[358931579,1745554235012,-507.38036078,0.00016438,2]
[358931580,1745554235021,-151.0,0.00016438,2]
[358931581,1745554235031,-503.01166082,0.00016438,2]
[358931582,1745554235041,-520.00856747,0.00016438,2]
[358931583,1745554235050,-500.0,0.00016438,2]
[358931584,1745554235059,-500.0,0.00016438,2]
[358931585,1745554235068,-500.0,0.00016438,2]
[358931586,1745554235078,-500.0,0.00016438,2]
[358931587,1745554235087,-591.97628213,0.00016438,2]
[358931588,1745554235097,-151.0,0.00016438,2]
[358931589,1745554235107,-1336.38,0.00016438,2]
[358931590,1745554235116,-516.32622868,0.00016438,2]
[358931591,1745554235125,-600.98696857,0.00016438,2]
[358931592,1745554235134,-503.16800454,0.00016438,2]
[358931593,1745554235144,-500.0,0.00016438,2]
[358931594,1745554235153,-512.24988169,0.00016438,2]
[358931595,1745554235163,-500.0,0.00016438,2]
[358931596,1745554235173,-507.3820571,0.00016438,2]
[358931597,1745554235183,-504.99295536,0.00016438,2]
[358931598,1745554235192,-2166.66,0.00016438,2]
[358931599,1745554235202,-510.19816904,0.00016438,2]
[358931600,1745554235211,-512.45959894,0.00016438,2]
[358931601,1745554235220,-1383.46,0.00016438,2]
[358931602,1745554235230,-500.0,0.00016438,2]
[358931603,1745554235240,-500.0,0.00016438,2]
[358931604,1745554235249,-505.53315527,0.00016438,2]
[358931605,1745554235258,-500.0,0.00016438,2]
[358931606,1745554235267,-565.40510812,0.00016438,2]
[358931607,1745554235276,-151.0,0.00016438,2]
[358931608,1745554235286,-508.66215699,0.00016438,2]
[358931609,1745554235295,-588.63,0.00016438,2]
[358931610,1745554235305,-151.0,0.00016438,2]
[358931611,1745554235315,-500.0,0.00016438,2]
[358931612,1745554235328,-500.0,0.00016438,2]
[358931613,1745554235338,-587.38,0.00016438,2]
[358931614,1745554235349,-500.0,0.00016438,2]
[358931615,1745554235360,-151.0,0.00016438,2]
[358931616,1745554235370,-500.0,0.00016438,2]
[358931617,1745554235379,-151.0,0.00016438,2]
[358931618,1745554235389,-506.00617518,0.00016438,2]
[358931619,1745554235399,-151.0,0.00016438,2]
[358931620,1745554235409,-339.042468,0.00016438,2]
[358931621,1745554235418,-500.0,0.00016438,2]
[358931622,1745554235428,-1027.62,0.00016438,2]
[358931623,1745554235440,-509.8984073,0.00016438,2]
[358931624,1745554235450,-339.042468,0.00016438,2]
[358931625,1745554235460,-500.0,0.00016438,2]
[358931626,1745554235470,-541.14,0.00016438,2]
[358931627,1745554235480,-151.0,0.00016438,2]
[358931628,1745554235491,-661.483738,0.00016438,2]
[358931629,1745554235501,-151.0,0.00016438,2]
[358931630,1745554235510,-512.81892985,0.00016438,2]
[358931631,1745554235519,-505.39491368,0.00016438,2]
[358931632,1745554235529,-661.483738,0.00016438,2]
[358931633,1745554235540,-500.0,0.00016438,2]
[358931634,1745554235549,-512.00803401,0.00016438,2]
[358931635,1745554235559,-495.0,0.00016438,2]
[358931636,1745554235569,-503.32708975,0.00016438,2]
[358931637,1745554235578,-507.67831995,0.00016438,2]
[358931638,1745554235587,-508.60467199,0.00016438,2]
[358931639,1745554235596,-503.06831371,0.00016438,2]
[358931640,1745554235605,-2404.57,0.00016438,2]
[358931641,1745554235616,-502.00606793,0.00016438,2]
[358931642,1745554235625,-151.0,0.00016438,2]
[358931643,1745554235634,-510.87782434,0.00016438,2]
[358931644,1745554235644,-1356.89,0.00016438,2]
[358931645,1745554235665,-503.41663265,0.00016438,2]
[358931646,1745554235677,-1284.72,0.00016438,2]
[358931647,1745554235688,-514.36286455,0.00016438,2]
[358931648,1745554235698,-505.89877836,0.00016438,2]
[358931649,1745554235708,-500.0,0.00016438,2]
[358931650,1745554235718,-500.91037268,0.00016438,2]
[358931651,1745554235728,-504.97992224,0.00016438,2]
[358931652,1745554235738,-500.0,0.00016438,2]
[358931653,1745554235748,-503.34333977,0.00016438,2]
[358931654,1745554235758,-505.5670671,0.00016438,2]
[358931655,1745554235768,-151.0,0.00016438,2]
[358931656,1745554235778,-592.26547565,0.00016438,2]
[358931657,1745554235788,-500.0,0.00016438,2]
[358931658,1745554235799,-500.0,0.00016438,2]
[358931659,1745554235810,-500.0,0.00016438,2]
[358931660,1745554235820,-509.90776413,0.00016438,2]
[358931661,1745554235829,-151.0,0.00016438,2]
[358931662,1745554235839,-500.0,0.00016438,2]
[358931663,1745554235850,-495.19974807,0.00016438,2]
[358931664,1745554235860,-506.68628568,0.00016438,2]
[358931665,1745554235870,-432.97239256,0.00016438,2]
[358931666,1745554235897,-74.02989534,0.00016438,2]
[358931667,1745554235907,-500.0,0.00016438,2]
[358931668,1745554235916,-598.19534405,0.00016438,2]
[358931669,1745554235926,-500.0,0.00016438,2]
[358931670,1745554235935,-1420.05,0.00016438,2]
[358931671,1745554235945,-500.0,0.00016438,2]
[358931672,1745554235955,-151.0,0.00016438,2]
[358931673,1745554235964,-1169.66,0.00016438,2]
[358931674,1745554235974,-512.51070778,0.00016438,2]
[358931675,1745554235983,-505.6780022,0.00016438,2]
[358931676,1745554235993,-177.79592,0.00016438,2]
[358931677,1745554236002,-500.0,0.00016438,2]
[358931678,1745554236011,-500.0,0.00016438,2]
[358931679,1745554236020,-482.85737287,0.00016438,2]
[358931680,1745554236030,-504.8284597,0.00016438,2]
[358931681,1745554236039,-522.269869,0.00016438,2]
[358931682,1745554236048,-506.75328944,0.00016438,2]
[358931683,1745554236058,-500.0,0.00016438,2]
[358931684,1745554236067,-504.39209583,0.00016438,2]
[358931685,1745554236077,-500.0,0.00016438,2]
[358931686,1745554236087,-501.09602347,0.00016438,2]
[358931687,1745554236097,-1481.05,0.00016438,2]
[358931688,1745554236106,-506.40065967,0.00016438,2]
[358931689,1745554236115,-503.48102915,0.00016438,2]
[358931690,1745554236125,-501.96664479,0.00016438,2]
[358931691,1745554236134,-509.50477884,0.00016438,2]
[358931692,1745554236144,-507.16849093,0.00016438,2]
[358931693,1745554236153,-501.78286656,0.00016438,2]
[358931694,1745554236163,-1110.54,0.00016438,2]
[358931695,1745554236172,-500.0,0.00016438,2]
[358931696,1745554236183,-502.83061578,0.00016438,2]
[358931697,1745554236192,-500.0,0.00016438,2]
[358931698,1745554236201,-507.43136891,0.00016438,2]
[358931699,1745554236211,-2629.38,0.00016438,2]
[358931700,1745554236221,-500.0,0.00016438,2]
[358931701,1745554236231,-500.0,0.00016438,2]
[358931702,1745554236240,-502.5583881,0.00016438,2]
[358931703,1745554236250,-503.96549061,0.00016438,2]
[358931704,1745554236259,-500.0,0.00016438,2]
[358931705,1745554236273,-501.37453027,0.00016438,2]
[358931706,1745554236283,-506.26271609,0.00016438,2]
[358931707,1745554236293,-502.42213108,0.00016438,2]
[358931708,1745554236303,-500.0,0.00016438,2]
[358931709,1745554236312,-501.13312253,0.00016438,2]
[358931710,1745554236322,-151.0,0.00016438,2]
[358931711,1745554236331,-502.36123222,0.00016438,2]
[358931712,1745554236341,-151.0,0.00016438,2]
[358931713,1745554236351,-500.0,0.00016438,2]
[358931714,1745554236360,-502.4512547,0.00016438,2]
[358931715,1745554236369,-505.96247288,0.00016438,2]
[358931716,1745554236379,-503.62681057,0.00016438,2]
[358931717,1745554236388,-502.56327022,0.00016438,2]
[358931718,1745554236398,-506.45917342,0.00016438,2]
[358931719,1745554236407,-507.90148582,0.00016438,2]
[358931720,1745554236416,-1113.73,0.00016438,2]
[358931721,1745554236426,-506.45614022,0.00016438,2]
[358931722,1745554236435,-507.64357343,0.00016438,2]
[358931723,1745554236444,-500.0,0.00016438,2]
[358931724,1745554236454,-583.96978176,0.00016438,2]
[358931725,1745554236463,-506.70952167,0.00016438,2]
[358931726,1745554236473,-501.20847373,0.00016438,2]
[358931727,1745554236483,-500.0,0.00016438,2]
[358931728,1745554236492,-502.95824274,0.00016438,2]
[358931729,1745554236502,-500.0,0.00016438,2]
[358931730,1745554236511,-110.47693608,0.00016438,2]
[358931731,1745554236525,-391.5078607,0.00016438,2]
[358931732,1745554236534,-500.40745913,0.00016438,2]
[358931733,1745554236545,-505.57457572,0.00016438,2]
[358931734,1745554236555,-500.0,0.00016438,2]
[358931735,1745554236566,-502.28233004,0.00016438,2]
[358931736,1745554236576,-506.71161826,0.00016438,2]
[358931737,1745554236585,-500.0,0.00016438,2]
[358931738,1745554236595,-151.0,0.00016438,2]
[358931739,1745554236604,-500.0,0.00016438,2]
[358931740,1745554236614,-504.28260337,0.00016438,2]
[358931741,1745554236627,-500.0,0.00016438,2]
[358931742,1745554236637,-500.0,0.00016438,2]
[358931743,1745554236647,-892.5,0.00016438,2]
[358931744,1745554236656,-503.9341674,0.00016438,2]
[358931745,1745554236666,-505.21015202,0.00016438,2]
[358931746,1745554236676,-1190.0,0.00016438,2]
[358931747,1745554236686,-178.36342,0.00016438,2]
[358931748,1745554236696,-503.30284393,0.00016438,2]
[358931749,1745554236706,-505.06734545,0.00016438,2]
[358931750,1745554236716,-258.49822717,0.00016438,2]
[358931751,1745554236726,-500.0,0.00016438,2]
[358931752,1745554236735,-500.7861374,0.00016438,2]
[358931753,1745554236745,-500.0,0.00016438,2]
[358931754,1745554236755,-501.16801424,0.00016438,2]
[358931755,1745554236765,-504.02400872,0.00016438,2]
[358931756,1745554236774,-525.73691972,0.00016438,2]
[358931757,1745554236784,-504.90487717,0.00016438,2]
[358931758,1745554236794,-505.76475587,0.00016438,2]
[358931759,1745554236804,-513.63282082,0.00016438,2]
[358931760,1745554236813,-501.36976138,0.00016438,2]
[358931761,1745554236823,-506.21933944,0.00016438,2]
[358931762,1745554236832,-503.14157945,0.00016438,2]
[358931763,1745554236842,-502.30171709,0.00016438,2]
[358931764,1745554236852,-504.99374638,0.00016438,2]
[358931765,1745554236861,-511.45826376,0.00016438,2]
[358931766,1745554236871,-501.51411879,0.00016438,2]
[358931767,1745554236881,-505.63601766,0.00016438,2]
[358931768,1745554236893,-503.85694911,0.00016438,2]
[358931769,1745554236903,-563.4768326,0.00016438,2]
[358931770,1745554236912,-507.07975169,0.00016438,2]
[358931771,1745554236922,-500.0,0.00016438,2]
[358931772,1745554236931,-500.0,0.00016438,2]
[358931773,1745554236940,-1379.64,0.00016438,2]
[358931774,1745554236951,-502.73430334,0.00016438,2]
[358931775,1745554236960,-506.26998053,0.00016438,2]
[358931776,1745554236970,-502.28942953,0.00016438,2]
[358931777,1745554236979,-504.86264235,0.00016438,2]
[358931778,1745554236989,-504.92802026,0.00016438,2]
[358931779,1745554236998,-502.51455826,0.00016438,2]
[358931780,1745554237008,-553.22,0.00016438,2]
[358931781,1745554237017,-503.26248343,0.00016438,2]
[358931782,1745554237027,-506.0163298,0.00016438,2]
[358931783,1745554237038,-505.22559217,0.00016438,2]
[358931784,1745554237047,-504.79687952,0.00016438,2]
[358931785,1745554237057,-500.0,0.00016438,2]
[358931786,1745554237067,-521.37185973,0.00016438,2]
[358931787,1745554237076,-500.0,0.00016438,2]
[358931788,1745554237087,-502.54323125,0.00016438,2]
[358931789,1745554237098,-501.10286075,0.00016438,2]
[358931790,1745554237109,-151.0,0.00016438,2]
[358931791,1745554237120,-503.06428678,0.00016438,2]
[358931792,1745554237130,-151.0,0.00016438,2]
[358931793,1745554237315,-501.17185369,0.00016438,2]
[358931794,1745554237329,-1206.30605236,0.00016438,2]
[358931795,1745554237353,-2283.81394764,0.00016438,2]
[358931796,1745554237363,-506.32227627,0.00016438,2]
[358931797,1745554237375,-500.0,0.00016438,2]
[358931798,1745554237384,-451.72998747,0.00016438,2]
[358931799,1745554237394,-505.68073751,0.00016438,2]
[358931800,1745554237405,-151.0,0.00016438,2]
[358931801,1745554237415,-154.088731,0.00016438,2]
[358931802,1745554237425,-364.36650956,0.00016438,2]
[358931803,1745554237435,-500.0,0.00016438,2]
[358931804,1745554237444,-502.60591319,0.00016438,2]
[358931805,1745554237453,-230.46340642,0.00016438,2]
[358931806,1745554237466,-271.38583429,0.00016438,2]
[358931807,1745554237476,-154.30288512,0.00016438,2]
[358931843,1745554238324,-345.69711488,0.00016438,2]
[358931845,1745554238335,-151.0,0.00016438,2]
[358931846,1745554238344,-151.0,0.00016438,2]
[358931848,1745554238354,-504.01433219,0.00016438,2]
[358931850,1745554238364,-502.29816676,0.00016438,2]
[358931852,1745554238374,-503.98093755,0.00016438,2]
[358931854,1745554238384,-0.12215231,0.00016438,2]
[358931855,1745554238397,-505.8449394,0.00016438,2]
[358931857,1745554238407,-500.0,0.00016438,2]
[358931859,1745554238416,-156.860021,0.00016438,2]
[358931861,1745554238427,-503.2137787,0.00016438,2]
[358931862,1745554238437,-163.5002458,0.00016438,2]
[358931863,1745554238447,-500.0,0.00016438,2]
[358931865,1745554238456,-500.0,0.00016438,2]
[358931867,1745554238466,-500.0,0.00016438,2]
[358931869,1745554238475,-506.64747856,0.00016438,2]
[358931870,1745554238486,-505.23380968,0.00016438,2]
[358931872,1745554238495,-501.85466649,0.00016438,2]
[358931874,1745554238506,-506.53215251,0.00016438,2]
[358931876,1745554238515,-151.0,0.00016438,2]
[358931877,1745554238525,-151.0,0.00016438,2]
[358931879,1745554238535,-503.35903981,0.00016438,2]
[358931881,1745554238545,-151.0,0.00016438,2]
[358931882,1745554238555,-500.0,0.00016438,2]
[358931884,1745554238566,-151.0,0.00016438,2]
[358931886,1745554238577,-151.0,0.00016438,2]
[358931888,1745554238587,-500.0,0.00016438,2]
[358931889,1745554238597,-151.0,0.00016438,2]
[358931891,1745554238607,-511.2,0.00016438,2]
[358931893,1745554238619,-505.76096099,0.00016438,2]
[358931894,1745554238629,-500.0,0.00016438,2]
[358931896,1745554238638,-500.0,0.00016438,2]
[358931898,1745554238648,-151.0,0.00016438,2]
[358931900,1745554238658,-3203.44,0.00016438,2]
[358931901,1745554238668,-151.0,0.00016438,2]
[358931903,1745554238678,-506.78000261,0.00016438,2]
[358931905,1745554238687,-508.25574734,0.00016438,2]
[358931906,1745554238699,-504.51910402,0.00016438,2]
[358931908,1745554238709,-1231.8,0.00016438,2]
[358931910,1745554238719,-500.0,0.00016438,2]
[358931911,1745554238728,-884.35,0.00016438,2]
[358931913,1745554238738,-500.0,0.00016438,2]
[358931915,1745554238747,-500.0,0.00016438,2]
[358931917,1745554238757,-503.13225022,0.00016438,2]
[358931918,1745554238766,-693.12,0.00016438,2]
[358931920,1745554238776,-505.5884135,0.00016438,2]
[358931922,1745554238786,-505.30722418,0.00016438,2]
[358931923,1745554238796,-509.20536635,0.00016438,2]
[358931925,1745554238805,-151.0,0.00016438,2]
[358931927,1745554238815,-2705.21114284,0.00016454,2]
[358931929,1745554238825,-500.0,0.00016473,2]
[358931931,1745554238840,-500.0,0.00016473,2]
[358931932,1745554238850,-500.0,0.00016473,2]
[358931934,1745554238859,-211.31123705,0.00016473,2]
[358931936,1745554238870,-500.84468112,0.00016473,2]
[358931937,1745554238879,-500.0,0.00016473,2]
[358931939,1745554238890,-500.0,0.00016473,2]
[358931941,1745554238899,-545.41765676,0.00016473,2]
[358931942,1745554238912,-500.0,0.00016473,2]
[358931944,1745554238923,-501.68700575,0.00016473,2]
[358931946,1745554238934,-503.48694535,0.00016473,2]
[358931948,1745554238944,-296.71513767,0.00016473,2]
[358931949,1745554238954,-501.29369041,0.00016473,2]
[358931951,1745554238964,-501.19303179,0.00016473,2]
[358931953,1745554238973,-500.0,0.00016473,2]
[358931954,1745554238983,-500.0,0.00016473,2]
[358931956,1745554238993,-501.06835788,0.00016473,2]
[358931958,1745554239003,-420.89076481,0.00016473,2]
[358931959,1745554239013,-503.20617439,0.00016473,2]
[358931961,1745554239022,-506.1163904,0.00016473,2]
[358931963,1745554239033,-500.01038789,0.00016473,2]
[358931965,1745554239043,-504.61599494,0.00016473,2]
[358931966,1745554239053,-501.72240751,0.00016473,2]
[358931968,1745554239063,-501.77221027,0.00016473,2]
[358931970,1745554239073,-500.0,0.00016473,2]
[358931971,1745554239083,-444.1970495,0.00016473,2]
[358931973,1745554239092,-164.57967691,0.00016473,2]
[358931975,1745554239102,-500.0,0.00016473,2]
[358931976,1745554239112,-500.0,0.00016473,2]
[358931978,1745554239122,-500.0,0.00016473,2]
[358931980,1745554239132,-500.0,0.00016473,2]
[358931982,1745554239142,-500.0,0.00016473,2]
[358931983,1745554239152,-502.70159432,0.00016473,2]
[358931985,1745554239162,-176.44354541,0.00016473,2]
[358931987,1745554239172,-317.96099324,0.00016496,2]
[358931988,1745554239182,-2705.21114284,0.00016569,2]
[358931990,1745554239191,-152.0,0.00016642,2]
[358931992,1745554239201,-2705.21114284,0.00016685,2]
[358931993,1745554239210,-1417.28,0.00016712,2]
[358931995,1745554239220,-500.0,0.00016712,2]
[358931997,1745554239229,-509.75847061,0.00016712,2]
[358931998,1745554239238,-507.01303529,0.00016712,2]
[358932000,1745554239248,-506.3205114,0.00016712,2]
[358932002,1745554239258,-500.0,0.00016712,2]
[358932004,1745554239268,-502.41255968,0.00016712,2]
[358932005,1745554239279,-1198.77,0.00016712,2]
[358932007,1745554239291,-185.51158809,0.00016712,2]
[358932008,1745554239300,-1253.2,0.00016712,2]
[358932010,1745554239309,-721.33,0.00016712,2]
[358932012,1745554239319,-1160.28,0.00016712,2]
[358932013,1745554239330,-994.15,0.00016712,2]
[358932015,1745554239339,-151.0,0.00016712,2]
[358932017,1745554239349,-151.0,0.00016712,2]
[358932019,1745554239359,-151.0,0.00016712,2]
[358932020,1745554239369,-1297.33,0.00016712,2]
[358932022,1745554239379,-151.0,0.00016712,2]
[358932024,1745554239390,-500.0,0.00016712,2]
[358932025,1745554239400,-1302.57,0.00016712,2]
[358932027,1745554239410,-151.0,0.00016712,2]
[358932029,1745554239420,-514.07,0.00016712,2]
[358932030,1745554239430,-151.0,0.00016712,2]
[358932032,1745554239439,-712.78,0.00016712,2]
[358932034,1745554239450,-740.945797,0.00016712,2]
[358932035,1745554239460,-151.0,0.00016712,2]
[358932037,1745554239470,-740.945797,0.00016712,2]
[358932039,1745554239479,-151.0,0.00016712,2]
[358932041,1745554239490,-235.382057,0.00016712,2]
[358932042,1745554239500,-235.382057,0.00016712,2]
[358932044,1745554239509,-151.0,0.00016712,2]
[358932046,1745554239520,-151.0,0.00016712,2]
[358932047,1745554239529,-151.0,0.00016712,2]
[358932049,1745554239540,-500.0,0.00016712,2]
[358932051,1745554239550,-1294.08,0.00016712,2]
[358932053,1745554239560,-1157.13,0.00016712,2]
[358932054,1745554239570,-151.0,0.00016712,2]
[358932056,1745554239579,-151.0,0.00016712,2]
[358932058,1745554239589,-1336.38,0.00016712,2]
[358932059,1745554239598,-2166.66,0.00016712,2]
[358932061,1745554239608,-1383.46,0.00016712,2]
[358932063,1745554239621,-151.0,0.00016712,2]
[358932065,1745554239631,-588.63,0.00016712,2]
[358932066,1745554239641,-151.0,0.00016712,2]
[358932068,1745554239650,-587.38,0.00016712,2]
[358932069,1745554239662,-151.0,0.00016712,2]
[358932070,1745554239671,-500.0,0.00016712,2]
[358932072,1745554239681,-151.0,0.00016712,2]
[358932073,1745554239693,-151.0,0.00016712,2]
[358932075,1745554239703,-151.0,0.00016712,2]
[358932076,1745554239713,-339.042468,0.00016712,2]
[358932078,1745554239722,-1027.62,0.00016712,2]
[358932080,1745554239732,-339.042468,0.00016712,2]
[358932081,1745554239742,-541.14,0.00016712,2]
[358932083,1745554239751,-156.993649,0.00016712,2]
[358932084,1745554239762,-661.483738,0.00016712,2]
[358932086,1745554239771,-151.0,0.00016712,2]
[358932088,1745554239781,-661.483738,0.00016712,2]
[358932089,1745554239791,-2404.57,0.00016712,2]
[358932091,1745554239801,-151.0,0.00016712,2]
[358932092,1745554239811,-151.0,0.00016712,2]
[358932094,1745554239821,-1356.89,0.00016712,2]
[358932096,1745554239831,-1284.72,0.00016712,2]
[358932097,1745554239840,-151.0,0.00016712,2]
[358932099,1745554239850,-151.0,0.00016712,2]
[358932100,1745554239860,-151.0,0.00016712,2]
[358932102,1745554239871,-151.0,0.00016712,2]
[358932104,1745554239880,-1420.05,0.00016712,2]